bitfinex-derivatives/quotes_ETHF0:USTF0_20250126
["timestamp","ask_amount","ask_price","bid_price","bid_amount"]
[1737934214349,0.00461786,3248.1,3247.5,5.1225]
[1737934214550,0.61596,3247.8,3247.5,5.1225]
[1737934215245,0.61593,3247.9,3247.4,0.00461786]
[1737934215449,0.61601,3247.5,3247.4,0.00461786]
[1737934215652,0.00461786,3248.1,3247.4,0.00461786]
[1737934215950,0.00461786,3248.1,3248.0,2.91277126]
[1737934216150,0.61594,3247.9,3247.5,0.61601]
[1737934216355,0.00461786,3248.1,3247.4,0.00461786]
[1737934216553,0.616,3247.6,3247.4,0.00461786]
[1737934217150,0.00461786,3248.1,3247.4,0.00461786]
[1737934217359,0.00461786,3248.1,3248.0,0.61591]
[1737934217657,0.00461786,3248.1,3248.0,8.78961]
[1737934217850,3.2078,3249.3,3248.0,13.78961]
[1737934218056,3.2078,3249.3,3248.6,3.82359]
[1737934218253,0.61567,3249.3,3248.6,3.2078]
[1737934218459,0.61578,3248.7,3248.6,3.2078]
[1737934218755,0.61577,3248.8,3248.6,3.2078]
[1737934219551,0.62034786,3249.0,3248.7,0.61577]
[1737934219756,0.61574,3248.9,3248.6,3.82358]
[1737934219957,0.61578,3248.7,3248.6,3.2078]
[1737934220559,0.61587,3248.3,3248.2,3.2078]
[1737934221053,0.61583,3248.5,3248.2,3.2078]
[1737934221253,0.61585,3248.4,3248.2,3.2078]
[1737934221457,0.00461786,3249.0,3248.2,3.2078]
[1737934221853,0.61583,3248.5,3248.2,3.2078]
[1737934222260,0.00461786,3249.0,3248.2,3.2078]
[1737934222457,0.6158,3248.6,3248.4,2.91277126]
[1737934222955,0.61582,3248.5,3248.2,3.2078]
[1737934223262,0.61585,3248.3,3248.2,3.2078]
[1737934223854,3.2078,3248.5,3247.5,3.2078]
[1737934224160,0.61599,3247.6,3247.5,3.2078]
[1737934224463,0.61599,3247.6,3247.4,5.01881786]
[1737934224464,0.61601,3247.5,3247.4,0.00461786]
[1737934225052,3.52878126,3247.5,3247.4,1e-08]
[1737934226454,8.52878126,3247.5,3247.4,1e-08]
[1737934230661,0.61631,3245.9,3245.8,3.2078]
[1737934234165,0.61631,3245.9,3245.5,0.00461786]
[1737934234166,0.61637,3245.6,3245.5,0.00461786]
[1737934235064,0.6163,3246.0,3245.8,0.61633]
[1737934235264,3.21241786,3246.2,3245.5,0.00461786]
[1737934235465,0.61635,3245.7,3245.5,0.62099786]
[1737934235668,0.61637,3245.6,3245.5,40.80461786]
[1737934235967,0.61637,3245.6,3245.5,0.00461786]
[1737934236862,0.61419981,3245.6,3245.5,0.00461786]
[1737934237063,3.21241786,3246.2,3245.5,0.00461786]
[1737934237274,0.61635,3245.7,3245.6,3.2078]
[1737934238673,0.61635,3245.7,3245.6,3.82417]
[1737934238971,0.61635,3245.7,3245.6,3.2078]
[1737934242480,0.61635,3245.7,3245.5,0.00461786]
[1737934242481,0.61637,3245.6,3245.5,0.00461786]
[1737934244187,3.52914126,3245.6,3245.5,0.00461786]
[1737934244386,0.61636,3245.7,3245.5,3.21241786]
[1737934244584,0.61637,3245.6,3245.5,3.21241786]
[1737934245081,4.75308786,3246.2,3245.5,3.21241786]
[1737934245283,3.21241786,3246.2,3245.5,3.21241786]
[1737934245485,2.91277126,3246.0,3245.5,3.21241786]
[1737934245787,3.52914126,3245.6,3245.5,0.00461786]
[1737934246295,0.61646,3245.1,3245.0,3.2078]
[1737934247385,0.61659,3244.5,3244.3,3.45498977]
[1737934247580,2.91277126,3245.3,3244.3,3.2078]
[1737934247787,0.6166,3244.4,3244.3,3.2078]
[1737934248186,0.61659,3244.5,3244.3,3.8244]
[1737934248493,1.54121,3245.0,3244.3,3.2078]
[1737934248680,3.2078,3245.1,3244.3,3.2078]
[1737934248993,0.61657,3244.6,3244.4,0.61659]
[1737934249193,3.2078,3245.1,3244.3,3.2078]
[1737934249389,0.61656,3244.6,3244.4,0.61658]
[1737934249785,3.2078,3245.1,3244.3,3.2078]
[1737934250088,0.6166,3244.4,3244.3,3.2078]
[1737934250889,0.6166,3244.4,3242.0,12.947]
[1737934250890,3.2078,3244.4,3243.7,8.479]
[1737934251084,0.61671,3243.8,3243.7,8.479]
[1737934252585,3.2078,3245.0,3243.7,8.479]
[1737934252889,1.54131,3244.8,3243.7,8.479]
[1737934253193,8.13097126,3244.9,3243.7,8.479]
[1737934253484,0.61671,3243.8,3243.7,5.2712]
[1737934253678,0.61679,3243.4,3243.3,4.8855]
[1737934253989,0.61679,3243.4,3243.3,9.8897]
[1737934254395,0.61676,3243.6,3243.4,0.61677]
[1737934254689,1.54169,3244.0,3243.3,9.8897]
[1737934254892,0.61678,3243.5,3243.3,10.50649]
[1737934255083,1.54169,3244.0,3243.3,10.50649]
[1737934255283,0.61679,3243.4,3243.3,10.50649]
[1737934255580,0.6168,3243.3,3243.2,3.2078]
[1737934255787,0.6168,3243.3,3243.0,0.00461786]
[1737934255788,0.61684,3243.1,3243.0,0.00461786]
[1737934255995,0.61683,3243.2,3243.0,0.62146786]
[1737934256191,0.61681,3243.3,3243.2,0.61682]
[1737934256398,0.61682,3243.2,3243.1,3.82464]
[1737934256695,0.61682,3243.2,3243.1,3.2078]
[1737934256888,1.54188,3243.6,3243.1,3.2078]
[1737934257095,0.61682,3243.2,3243.1,3.2078]
[1737934257897,1.54178,3243.8,3243.1,3.2078]
[1737934258087,2.91277126,3244.1,3243.1,13.403]
[1737934258395,0.61677,3243.5,3243.4,0.61677]
[1737934258595,4.45442126,3244.1,3243.3,0.61679]
[1737934258791,0.61677,3243.5,3243.4,5.2617]
[1737934263688,2.91277126,3243.7,3243.1,3.2078]
[1737934263998,0.61682,3243.2,3243.1,3.2078]
[1737934264495,0.61677,3243.5,3243.4,0.61678]
[1737934264691,0.61677,3243.5,3243.1,3.2078]
[1737934264692,3.2078,3244.0,3243.6,0.61673]
[1737934264887,3.82448,3244.0,3243.8,0.6167]
[1737934265086,3.2078,3244.4,3243.6,1.54187]
[1737934265286,3.2078,3244.4,3243.6,4.9774]
[1737934265488,0.61668,3244.0,3243.8,0.6167]
[1737934265687,0.61667,3244.1,3243.6,4.9774]
[1737934265888,0.00461786,3244.6,3243.9,3.2078]
[1737934266090,0.00461786,3244.6,3244.5,0.61658]
[1737934266495,1e-08,3244.6,3244.5,10.75708]
[1737934266792,1e-08,3244.6,3244.5,10.1405]
[1737934266793,0.61656001,3244.6,3244.5,10.1405]
[1737934266996,0.61656001,3244.6,3244.5,4.9774]
[1737934267194,0.61656001,3244.6,3244.4,3.2078]
[1737934267195,1e-08,3244.6,3244.4,3.2078]
[1737934267398,0.61658,3244.5,3244.4,3.2078]
[1737934267788,1e-08,3244.6,3244.4,3.2078]
[1737934267994,1e-08,3244.6,3244.5,0.61658]
[1737934268395,1e-08,3244.6,3244.5,5.38798]
[1737934268997,1e-08,3244.6,3244.5,10.38798]
[1737934269696,1e-08,3244.6,3244.5,51.18798]
[1737934269898,1e-08,3244.6,3244.5,5.38798]
[1737934270403,1e-08,3244.6,3244.5,4.7714]
[1737934270593,0.61656001,3244.6,3244.5,4.7714]
[1737934270990,1e-08,3244.6,3244.5,4.7714]
[1737934271195,1e-08,3244.6,3244.5,10.38798]
[1737934271802,1e-08,3244.6,3244.5,5.38798]
[1737934271997,0.61656001,3244.6,3244.4,3.2078]
[1737934272205,1e-08,3244.6,3244.4,3.2078]
[1737934272401,1e-08,3244.6,3243.9,4.8017]
[1737934272597,1e-08,3244.6,3243.5,3.2078]
[1737934272902,3.2078,3244.1,3243.5,3.2078]
[1737934273100,0.61675,3243.6,3243.5,3.2078]
[1737934273297,0.61684,3243.1,3243.0,3.21241786]
[1737934273600,0.61684,3243.1,3243.0,0.00461786]
[1737934275194,0.61683,3243.2,3243.0,0.00461786]
[1737934275395,8.0105,3243.6,3243.0,0.00461786]
[1737934275794,0.61683,3243.2,3243.0,0.00461786]
[1737934275995,0.61682,3243.3,3243.0,0.00461786]
[1737934276199,0.61679,3243.4,3243.0,0.62146786]
[1737934276400,0.61681,3243.3,3243.0,0.62146786]
[1737934276798,0.61679,3243.4,3243.0,0.62146786]
[1737934277000,5.0202,3244.2,3243.3,3.2078]
[1737934277195,5.0202,3244.2,3243.2,3.2078]
[1737934277402,0.61673,3243.7,3243.6,3.2078]
[1737934278100,5.0202,3244.2,3243.8,0.6167]
[1737934278302,3.2078,3244.3,3243.6,3.2078]
[1737934278603,0.61671,3243.8,3243.7,5.0319]
[1737934278802,0.61673,3243.7,3243.6,3.2078]
[1737934279397,0.61664,3244.2,3243.9,0.61668]
[1737934279701,3.2078,3245.4,3244.5,0.61657]
[1737934279702,4.9557,3245.1,3244.5,0.61657]
[1737934280006,3.2078,3245.4,3244.8,3.2078]
[1737934280403,4.962,3245.6,3244.8,3.2078]
[1737934280907,0.00462513,3245.5,3245.3,3.2078]
[1737934281406,0.61641,3245.4,3245.3,3.2078]
[1737934282006,0.61648,3245.0,3244.9,0.00462513]
[1737934283797,8.2078,3245.0,3244.2,3.2078]
[1737934284001,0.61661,3244.3,3244.2,3.2078]
[1737934285010,3.2078,3245.0,3244.2,3.2078]
[1737934285313,0.61659,3244.5,3244.2,3.82443]
[1737934285908,0.61661,3244.3,3244.2,3.2078]
[1737934286403,0.61658,3244.5,3244.2,3.2078]
[1737934286599,3.2078,3245.0,3244.2,3.2078]
[1737934286800,1.54131,3244.8,3244.0,3.2078]
[1737934287007,0.61665,3244.1,3244.0,3.2078]
[1737934287206,0.61667,3244.0,3243.9,0.00462513]
[1737934287404,5.80527,3244.0,3243.9,0.00462513]
[1737934287700,0.61667,3244.0,3243.9,0.00462513]
[1737934289813,1.54181,3243.8,3243.1,3.2078]
[1737934290013,0.6168,3243.4,3243.2,0.61682]
[1737934290209,4.8755,3244.3,3243.1,3.2078]
[1737934290405,4.8755,3244.3,3243.5,3.2078]
[1737934290610,4.8755,3244.3,3243.5,3.82456]
[1737934290907,0.6167,3243.9,3243.5,3.2078]
[1737934291104,0.6167,3243.9,3243.6,0.61675]
[1737934291301,0.61675,3243.6,3243.5,3.2078]
[1737934291500,1.54169,3244.0,3243.1,3.2078]
[1737934291705,0.61682,3243.2,3243.1,3.2078]
[1737934292209,0.61682,3243.3,3243.1,3.82464]
[1737934292407,0.61682,3243.2,3243.1,3.2078]
[1737934292604,0.61682,3243.3,3243.1,3.2078]
[1737934292805,0.61682,3243.2,3243.1,3.2078]
[1737934293115,1.54169,3244.0,3243.1,3.2078]
[1737934293304,1.54169,3244.0,3243.1,3.82464]
[1737934293305,0.61682,3243.3,3243.1,3.82464]
[1737934293505,3.2078,3244.1,3243.1,3.2078]
[1737934293712,0.61682,3243.2,3243.1,3.2078]
[1737934294214,1.54173,3243.9,3243.1,3.2078]
[1737934294412,0.61681,3243.3,3243.1,3.2078]
[1737934294618,1.54173,3243.9,3243.1,3.2078]
[1737934294812,0.61682,3243.2,3243.1,3.2078]
[1737934296005,0.6168,3243.4,3243.1,3.82463]
[1737934296205,0.61681,3243.3,3243.1,3.82463]
[1737934296515,0.61682,3243.2,3243.1,3.2078]
[1737934299016,0.6169,3242.8,3242.7,3.2078]
[1737934300316,1.5421,3243.2,3242.1,43.72250556]
[1737934300317,0.61694,3242.6,3242.3,0.61698]
[1737934300524,6.13030556,3243.3,3242.2,8.2201]
[1737934300716,0.61692,3242.7,3242.6,3.2078]
[1737934301017,1.54207,3243.2,3242.2,8.2201]
[1737934301214,1.54207,3243.2,3242.3,0.61698]
[1737934301412,0.61693,3242.7,3242.3,0.61698]
[1737934301606,0.61693,3242.7,3242.2,8.2201]
[1737934301607,0.61691,3242.8,3242.4,0.61696]
[1737934301909,0.61691,3242.8,3242.6,3.2078]
[1737934302216,3.2078,3243.3,3242.6,3.2078]
[1737934302606,0.61692,3242.7,3242.6,3.2078]
[1737934302820,0.61691,3242.8,3242.6,3.2078]
[1737934303213,4.74982,3243.3,3242.8,0.6169]
[1737934303214,0.61687,3243.0,3242.8,0.6169]
[1737934303615,3.2078,3243.3,3242.6,3.2078]
[1737934303813,0.61692,3242.7,3242.6,3.2078]
[1737934304714,0.61691,3242.8,3242.6,3.82474]
[1737934304918,0.61687,3243.0,3242.8,0.61689]
[1737934305120,0.61686,3243.1,3242.9,0.61687]
[1737934305618,0.61686,3243.0,3242.8,0.61689]
[1737934305820,0.61684,3243.1,3243.0,0.61685]
[1737934306023,0.61684,3243.1,3242.9,0.61687]
[1737934306411,0.61684,3243.1,3242.6,3.2078]
[1737934306612,0.61689,3242.9,3242.7,0.6169]
[1737934307520,0.61689,3242.9,3242.8,0.6169]
[1737934307719,0.61689,3242.9,3242.8,0.61689]
[1737934307919,0.61691,3242.8,3242.7,0.61691]
[1737934308115,4.7944,3243.4,3242.6,3.2078]
[1737934308315,0.61692,3242.7,3242.6,3.82473]
[1737934308615,0.61691,3242.8,3242.7,0.61691]
[1737934309622,0.61692,3242.7,3242.6,3.82472]
[1737934309818,4.7944,3243.4,3242.6,3.2078]
[1737934310024,4.74968,3243.7,3243.1,0.61684]
[1737934310219,0.61677,3243.5,3243.0,0.61684]
[1737934310424,0.61684,3243.2,3243.1,0.61684]
[1737934310631,0.61685,3243.1,3243.0,0.61685]
[1737934310921,0.61684,3243.2,3243.1,0.61684]
[1737934311121,0.61684,3243.2,3243.1,0.61683]
[1737934311323,0.61684,3243.1,3243.0,3.82466]
[1737934311522,0.61683,3243.2,3243.1,0.61683]
[1737934312119,3.2078,3243.7,3243.0,3.2078]
[1737934312419,3.2078,3243.7,3243.1,5.0636]
[1737934312725,0.6168,3243.4,3243.3,0.6168]
[1737934312917,0.61678,3243.5,3243.4,0.61678]
[1737934314024,3.2078,3243.7,3243.1,9.9678]
[1737934314322,0.61678,3243.5,3243.2,0.61682]
[1737934314521,0.61679,3243.4,3243.3,0.61679]
[1737934315319,3.2078,3243.7,3243.1,5.0636]
[1737934315527,0.61679,3243.5,3243.2,0.61682]
[1737934315720,3.2078,3243.7,3243.5,0.61676]
[1737934315721,0.61675,3243.6,3243.5,0.61676]
[1737934315923,0.61675,3243.6,3243.5,3.82456]
[1737934317025,0.61675,3243.6,3243.5,3.82455]
[1737934317226,0.61674,3243.7,3243.6,0.61674]
[1737934317530,1.54621513,3244.2,3243.5,3.82456]
[1737934317531,0.61675,3243.6,3243.5,3.82456]
[1737934317716,0.61672,3243.8,3243.7,0.61672]
[1737934317925,0.00462513,3244.2,3243.5,3.2078]
[1737934318119,0.61666,3244.1,3244.0,0.61665]
[1737934318321,0.61666,3244.1,3244.0,3.2078]
[1737934318720,0.61675,3243.6,3243.5,3.2078]
[1737934319118,3.2078,3243.9,3242.9,3.2078]
[1737934319423,0.61686,3243.0,3242.9,3.2078]
[1737934321928,0.61686,3243.0,3241.9,3.2078]
[1737934321929,0.61707,3242.0,3241.9,3.2078]
[1737934322323,0.6172,3241.2,3241.0,8.63947135]
[1737934322629,0.61722,3241.1,3241.0,4.81444135]
[1737934322834,0.61722,3241.1,3240.6,8.2201]
[1737934322835,1.54287,3241.5,3240.6,8.2201]
[1737934323130,5.0917,3241.4,3240.6,8.2201]
[1737934323333,0.61725,3241.0,3240.7,0.61728]
[1737934323525,2.92250556,3242.0,3240.8,2.92250556]
[1737934323823,8.2995,3242.2,3241.6,3.2078]
[1737934324035,5.0957,3242.6,3241.0,1.54309]
[1737934324036,3.2078,3243.3,3242.2,0.61701]
[1737934324219,0.6168,3243.4,3242.1,3.70216]
[1737934324423,2.92250556,3244.0,3243.1,3.2078]
[1737934324628,0.61679,3243.4,3243.1,3.2078]
[1737934324823,3.2078,3243.8,3242.7,2.92250556]
[1737934325024,3.2078,3243.8,3242.8,0.61689]
[1737934325224,3.2078,3243.8,3243.0,3.2078]
[1737934325429,0.00462513,3243.6,3243.0,3.21242513]
[1737934325630,0.61678,3243.5,3243.1,0.61683]
[1737934326426,0.61678,3243.5,3243.2,0.61682]
[1737934326628,0.00462513,3243.6,3243.1,0.61683]
[1737934326832,0.61679,3243.4,3243.0,3.21242513]
[1737934327036,0.61679,3243.4,3243.1,0.61684]
[1737934327235,0.61679,3243.5,3243.1,0.61684]
[1737934327435,0.61684,3243.1,3243.0,3.21242513]
[1737934327730,0.61684,3243.1,3240.4,3.0868]
[1737934327731,3.2078,3243.1,3241.7,3.2078]
[1737934327931,1.54228,3242.8,3241.7,3.2078]
[1737934328236,0.61706,3242.0,3241.7,3.2078]
[1737934328429,0.61705,3242.1,3241.7,3.8249]
[1737934328631,0.61705,3242.1,3241.7,3.2078]
[1737934328931,3.2078,3242.7,3241.8,0.61709]
[1737934329131,1.54217,3243.0,3241.7,3.2078]
[1737934329431,1.54205,3243.3,3242.1,3.2078]
[1737934329732,0.61693,3242.7,3242.5,3.2078]
[1737934329936,1.54205,3243.3,3242.5,3.2078]
[1737934330124,0.61694,3242.7,3242.5,3.2078]
[1737934330324,6.1445,3243.4,3242.6,0.61694]
[1737934330524,4.8885,3243.4,3242.8,0.61689]
[1737934330731,4.8885,3243.4,3242.6,45.5969]
[1737934331037,3.2078,3243.5,3242.7,4.7906]
[1737934331333,0.6169,3242.8,3242.6,4.7969]
[1737934331529,1.54202,3243.3,3242.5,3.2078]
[1737934331734,0.61694,3242.6,3242.3,0.61699]
[1737934331928,0.61694,3242.6,3242.3,3.82479]
[1737934332129,3.2078,3243.0,3242.3,3.2078]
[1737934332130,0.61697,3242.5,3242.3,3.2078]
[1737934332331,4.9877,3242.9,3242.3,3.2078]
[1737934332529,0.61698,3242.4,3242.3,3.2078]
[1737934333230,4.9877,3242.9,3242.3,3.2078]
[1737934333428,0.61696,3242.6,3242.3,3.2078]
[1737934333631,0.61696,3242.5,3242.3,3.2078]
[1737934334128,4.9877,3242.9,3242.3,3.2078]
[1737934334337,0.61687,3243.0,3242.8,3.2078]
[1737934334525,0.61686,3243.0,3242.8,3.8247]
[1737934334723,3.2078,3243.5,3242.8,3.2078]
[1737934334929,0.61684,3243.1,3242.9,0.61687]
[1737934335137,0.61683,3243.2,3242.9,0.61687]
[1737934335337,3.2078,3243.5,3243.0,0.61686]
[1737934335638,0.61683,3243.2,3242.9,0.61687]
[1737934335840,3.2078,3243.5,3242.8,3.2078]
[1737934336033,0.00462513,3243.6,3243.3,3.2078]
[1737934336334,0.00462513,3243.6,3243.5,0.61677]
[1737934336644,3.2078,3245.1,3244.6,0.61655]
[1737934336832,3.2078,3245.1,3244.5,3.82437]
[1737934337032,3.2078,3245.1,3244.5,3.2078]
[1737934337236,1.54094,3245.6,3244.5,3.2078]
[1737934337433,3.2078,3245.7,3244.9,3.2078]
[1737934338039,0.00462513,3245.6,3245.4,0.6164]
[1737934338343,0.00462513,3245.6,3245.3,3.82422]
[1737934338739,0.00462513,3245.6,3245.3,3.2078]
[1737934338936,0.62100513,3245.6,3245.3,3.2078]
[1737934339139,0.00462513,3245.6,3245.3,3.82421]
[1737934339635,0.00462513,3245.6,3245.3,3.2078]
[1737934339842,0.61618,3246.6,3246.1,0.61626]
[1737934340046,3.2078,3247.4,3246.2,3.2078]
[1737934340241,0.61616,3246.7,3246.6,3.2078]
[1737934340541,20.00877697,3247.0,3245.1,4.9379]
[1737934340731,1.5405,3246.5,3245.1,4.9379]
[1737934340928,0.6164,3245.5,3245.1,4.9379]
[1737934341339,0.00462513,3246.3,3245.1,4.9379]
[1737934341543,0.00462513,3246.3,3245.1,5.55436]
[1737934341544,0.61638,3245.6,3245.1,5.55436]
[1737934341735,0.61638,3245.6,3245.4,3.2078]
[1737934341931,0.61639,3245.5,3245.4,3.2078]
[1737934342137,0.61646,3245.1,3245.0,0.00462513]
[1737934342739,0.61665,3244.1,3244.0,3.2078]
[1737934342943,0.61664,3244.2,3243.9,3.2078]
[1737934343246,0.6166,3244.4,3243.9,3.82448]
[1737934343542,1.54121,3245.0,3243.9,3.2078]
[1737934343741,0.6166,3244.4,3243.9,3.82448]
[1737934344044,1.54121,3245.0,3243.9,3.82448]
[1737934344045,0.61662,3244.3,3243.9,3.82448]
[1737934344245,0.61662,3244.3,3243.9,3.82449]
[1737934344443,0.61662,3244.3,3243.9,3.2078]
[1737934344643,0.00462513,3244.5,3243.9,3.2078]
[1737934344842,0.6166,3244.4,3243.9,3.82448]
[1737934345142,0.00462513,3244.5,3243.9,3.2078]
[1737934345344,0.61667,3244.0,3243.9,3.2078]
[1737934345847,0.6166,3244.4,3244.0,0.61667]
[1737934346046,0.6166,3244.4,3243.9,3.2078]
[1737934346245,0.00462513,3244.5,3243.9,3.2078]
[1737934346444,0.61667,3244.0,3243.9,3.2078]
[1737934347344,0.00462513,3244.5,3243.9,3.2078]
[1737934347749,0.61667,3244.0,3243.9,3.2078]
[1737934348739,3.21242513,3244.5,3243.8,0.00462513]
[1737934348951,0.61669,3243.9,3243.8,0.00462513]
[1737934349338,3.2078,3244.1,3243.1,3.2078]
[1737934349533,0.61682,3243.2,3243.1,3.2078]
[1737934350743,0.61692,3242.7,3242.6,3.2078]
[1737934351040,0.61701,3242.2,3242.1,3.2078]
[1737934351240,0.617,3242.3,3242.1,3.2078]
[1737934351445,0.61701,3242.2,3242.1,3.2078]
[1737934352347,3.2078,3242.5,3241.6,3.2078]
[1737934352547,0.61711,3241.7,3241.6,3.2078]
[1737934353149,4.7656,3242.4,3241.6,3.2078]
[1737934353447,0.61705,3242.1,3241.7,0.6171]
[1737934353641,4.7656,3242.4,3241.6,3.2078]
[1737934353839,4.7656,3242.4,3241.8,0.61708]
[1737934353840,0.61703,3242.2,3241.8,0.61708]
[1737934354046,0.61702,3242.2,3241.8,0.61708]
[1737934354254,0.61703,3242.1,3241.6,3.2078]
[1737934354441,0.61707,3241.9,3241.6,3.2078]
[1737934354950,0.61707,3241.9,3241.6,3.82492]
[1737934355150,0.61704,3242.1,3241.7,0.6171]
[1737934355450,0.61704,3242.1,3241.6,3.2078]
[1737934355645,4.7656,3242.4,3241.6,3.2078]
[1737934355849,0.61711,3241.7,3241.6,3.2078]
[1737934356048,0.6171,3241.8,3241.6,3.2078]
[1737934356749,0.61711,3241.7,3241.6,3.2078]
[1737934358853,1.54277,3241.8,3240.9,16.1598]
[1737934359152,0.61724,3241.0,3240.9,16.1598]
[1737934359951,0.61724,3241.0,3240.9,3.2078]
[1737934360157,1.5431,3241.1,3240.3,41.41737]
[1737934360346,0.6172,3241.2,3241.0,3.2078]
[1737934360656,0.00462513,3241.3,3241.0,3.2078]
[1737934360855,0.00462513,3241.3,3241.1,0.61722]
[1737934361154,0.00462513,3241.3,3241.0,3.2078]
[1737934361449,0.61722,3241.1,3241.0,3.2078]
[1737934362457,3.08417,3243.2,3241.5,0.61713]
[1737934362458,0.6171,3241.8,3241.5,0.61713]
[1737934362758,0.61712,3241.7,3241.5,3.2078]
[1737934363054,0.6171,3241.8,3241.6,40.8]
[1737934363453,0.6171,3241.8,3241.5,3.82494]
[1737934363653,3.2078,3242.1,3241.6,0.61712]
[1737934363850,0.61708,3241.9,3241.6,0.61712]
[1737934364051,0.61708,3241.9,3241.5,3.2078]
[1737934364052,0.00462513,3242.0,3241.8,0.61708]
[1737934365052,0.00462513,3242.0,3241.6,5.0786]
[1737934365255,5.0946,3243.1,3241.9,6.58312954]
[1737934365445,1.54189,3243.6,3242.4,6.58312954]
[1737934365645,5.0379,3243.9,3242.8,3.2078]
[1737934365856,0.61688,3242.9,3242.8,3.2078]
[1737934366952,0.00462513,3243.2,3243.1,0.61684]
[1737934367153,0.00462513,3243.2,3242.8,3.2078]
[1737934367353,0.61686,3243.0,3242.8,3.82469]
[1737934367553,0.61688,3242.9,3242.8,3.2078]
[1737934367754,0.61687,3243.0,3242.8,3.8247]
[1737934367955,3.21242513,3243.2,3242.5,4.76722513]
[1737934368158,0.61694,3242.6,3242.5,0.00462513]
[1737934370356,0.61685,3243.1,3242.8,0.61688]
[1737934370558,0.61689,3242.9,3242.7,3.2078]
[1737934370857,0.00462513,3243.2,3242.7,3.2078]
[1737934370858,0.61684,3243.1,3242.7,3.2078]
[1737934371156,0.61687,3243.0,3242.7,3.82471]
[1737934371365,0.00462513,3243.2,3242.7,3.2078]
[1737934371559,0.62144513,3243.2,3243.0,0.61685]
[1737934371854,0.61686,3243.1,3242.8,4.7723]
[1737934372058,0.00462513,3243.2,3243.0,0.61685]
[1737934372260,0.00462513,3243.2,3242.8,4.7723]
[1737934372662,0.00462513,3243.2,3243.0,0.61684]
[1737934372851,0.62145513,3243.2,3242.9,0.61687]
[1737934373157,1.54669513,3243.2,3242.7,3.2078]
[1737934373457,0.6169,3242.8,3242.7,3.2078]
[1737934373659,0.61694,3242.6,3242.5,0.00462513]
[1737934376355,4.7595,3243.0,3242.5,0.00462513]
[1737934376563,0.61694,3242.6,3242.5,0.00462513]
[1737934380855,0.61694,3242.6,3242.5,3.21242513]
[1737934382064,3.2078,3243.0,3242.5,3.21242513]
[1737934382266,3.2078,3243.0,3242.9,0.61688]
[1737934382267,3.82467,3243.0,3242.9,0.61688]
[1737934382468,3.2078,3243.0,3242.9,0.61688]
[1737934382758,0.00462513,3243.2,3243.1,0.61684]
[1737934383359,5.2418,3244.7,3243.1,5.0]
[1737934383664,3.2078,3245.3,3244.3,3.2078]
[1737934384062,4.74888,3245.3,3244.3,3.2078]
[1737934384256,0.61656,3244.6,3244.3,3.8244]
[1737934384462,4.74888,3245.3,3243.7,3.2078]
[1737934384463,1.54129,3244.9,3243.7,3.2078]
[1737934384761,8.1743,3245.3,3243.7,3.2078]
[1737934384762,0.61671,3243.8,3243.7,3.2078]
[1737934385264,3.2078,3244.5,3243.7,3.2078]
[1737934385562,0.61671,3243.8,3243.7,3.2078]
[1737934386663,0.00462513,3244.8,3243.7,8.2078]
[1737934386967,0.00462513,3244.8,3244.7,0.61654]
[1737934387568,0.00462513,3244.8,3244.7,5.61654]
[1737934388078,0.61634,3245.8,3244.7,10.76654]
[1737934388257,0.61631,3245.9,3245.8,3.2078]
[1737934389360,0.00462513,3246.2,3245.8,3.2078]
[1737934389568,0.61627,3246.1,3245.8,3.82412]
[1737934389868,0.00462513,3246.2,3245.9,3.37532954]
[1737934390067,0.61629,3246.0,3245.9,3.37532954]
[1737934390467,0.00462513,3246.2,3245.9,3.37532954]
[1737934390867,0.00462513,3246.2,3246.1,0.61627]
[1737934391261,0.00462513,3246.2,3246.0,5.78739]
[1737934391864,3.2078,3248.2,3246.1,1.54069]
[1737934392062,3.2078,3248.2,3247.4,6.58312954]
[1737934392872,0.61601,3247.5,3247.4,3.2078]
[1737934393670,1.54436513,3248.1,3247.1,0.00462513]
[1737934393671,0.61606,3247.2,3247.1,0.00462513]
[1737934394673,5.40066,3247.2,3247.1,0.00462513]
[1737934395869,0.61606,3247.2,3247.1,0.00462513]
[1737934398764,4.8539,3247.6,3247.1,0.00462513]
[1737934398969,0.61605,3247.3,3247.1,0.00462513]
[1737934399571,3.2078,3247.7,3247.1,0.00462513]
[1737934399770,0.61606,3247.2,3247.1,0.00462513]
[1737934402472,3.2078,3247.7,3247.1,0.00462513]
[1737934402672,0.61598,3247.7,3247.5,3.37532954]
[1737934403080,0.61599,3247.6,3247.5,3.37532954]
[1737934403978,3.21242513,3248.1,3247.5,3.37532954]
[1737934404170,0.61598,3247.7,3247.5,3.37532954]
[1737934404370,0.61599,3247.6,3247.5,3.37532954]
[1737934404575,0.61603,3247.4,3247.3,3.2078]
[1737934405173,0.61606,3247.2,3247.1,0.00462513]
[1737934407871,3.82386,3247.2,3247.1,5.13e-06]
[1737934408271,8.82386,3247.2,3247.1,5.13e-06]
[1737934411887,3.82386,3247.2,3247.1,5.13e-06]
[1737934412780,0.61606,3247.2,3247.1,5.13e-06]
[1737934413889,0.61602,3247.5,3247.3,0.61603]
[1737934414085,0.00462513,3248.1,3247.5,1.54002]
[1737934414283,0.00462513,3248.1,3248.0,3.82371]
[1737934414484,3.2078,3248.6,3248.0,3.2078]
[1737934414794,0.61589,3248.1,3248.0,8.3567]
[1737934414979,0.61591,3248.0,3247.9,3.37532954]
[1737934415485,0.61591,3248.0,3247.9,6.58312954]
[1737934415682,0.0046178,3248.3,3247.9,6.58312954]
[1737934415878,0.61576,3248.8,3247.9,7.19903954]
[1737934416080,0.61585,3248.4,3248.1,0.61589]
[1737934416390,1.53927,3249.1,3248.3,3.2078]